fUSD/lending_fUSD_20240425
["ID","MTS","AMOUNT","RATE_DAILY","PERIOD"]
[323482917,1714042243186,-500.0,0.00011273,2]
[323482918,1714042243195,-500.0,0.00011273,2]
[323482919,1714042243205,-500.0,0.00011273,2]
[323482920,1714042243215,-500.0,0.00011273,2]
[323482921,1714042243225,-500.0,0.00011273,2]
[323482922,1714042243235,-500.0,0.00011273,2]
[323482923,1714042243247,-500.0,0.00011273,2]
[323482924,1714042243257,-536.56,0.00011273,2]
[323482925,1714042243266,-500.0,0.00011273,2]
[323482926,1714042243276,-500.0,0.00011273,2]
[323482927,1714042243286,-500.0,0.00011273,2]
[323482928,1714042243295,-505.86378851,0.00011273,2]
[323482929,1714042243304,-636.9,0.00011273,2]
[323482930,1714042243314,-500.0,0.00011273,2]
[323482931,1714042243323,-500.0,0.00011273,2]
[323482932,1714042243333,-550.92260623,0.00011273,2]
[323482933,1714042243342,-611.57,0.00011273,2]
[323482934,1714042243351,-438.35,0.00011273,2]
[323482935,1714042243361,-455.64,0.00011273,2]
[323482936,1714042243370,-500.0,0.00011273,2]
[323482937,1714042243381,-500.0,0.00011273,2]
[323482938,1714042243390,-500.0,0.00011273,2]
[323482939,1714042243400,-500.0,0.00011273,2]
[323482940,1714042243410,-279.06,0.00011273,2]
[323482941,1714042243420,-500.0,0.00011273,2]
[323482942,1714042243430,-500.0,0.00011273,2]
[323482943,1714042243439,-500.0,0.00011273,2]
[323482944,1714042243449,-500.0,0.00011273,2]
[323482945,1714042243458,-513.68,0.00011273,2]
[323482946,1714042243468,-500.0,0.00011273,2]
[323482947,1714042243478,-500.0,0.00011273,2]
[323482948,1714042243488,-500.0,0.00011273,2]
[323482949,1714042243500,-500.0,0.00011273,2]
[323482950,1714042243510,-500.0,0.00011273,2]
[323482951,1714042243519,-569.08,0.00011273,2]
[323482952,1714042243529,-567.8,0.00011273,2]
[323482953,1714042243538,-500.0,0.00011273,2]
[323482954,1714042243547,-500.0,0.00011273,2]
[323482955,1714042243557,-500.0,0.00011273,2]
[323482956,1714042243566,-500.0,0.00011273,2]
[323482957,1714042243575,-405.65221136,0.00011273,2]
[323482958,1714042243584,-894.14,0.00011273,2]
[323482959,1714042243593,-504.21926892,0.00011273,2]
[323482960,1714042243603,-222.86373312,0.00011273,2]
[323482961,1714042243612,-500.0,0.00011273,2]
[323482962,1714042243621,-624.28951018,0.00011273,2]
[323482963,1714042243631,-500.0,0.00011273,2]
[323482964,1714042243641,-167.1306648,0.00011273,2]
[323482965,1714042243650,-500.0,0.00011273,2]
[323482966,1714042243660,-546.97,0.00011273,2]
[323482967,1714042243669,-514.74,0.00011273,2]
[323482968,1714042243679,-151.131792,0.00011273,2]
[323482969,1714042243688,-151.0,0.00011273,2]
[323482970,1714042243697,-500.0,0.00011546,2]
[323482971,1714042243706,-500.0,0.00011546,2]
[323482972,1714042243715,-500.0,0.00011546,2]
[323482973,1714042243724,-1042.95,0.00011546,2]
[323482974,1714042243733,-182.22,0.00011546,2]
[323482975,1714042243743,-500.0,0.00011546,2]
[323482976,1714042243752,-500.0,0.00011546,2]
[323482977,1714042243761,-424.09,0.00011546,2]
[323482978,1714042243770,-500.0,0.00011546,2]
[323482979,1714042243780,-500.0,0.00011546,2]
[323482980,1714042243790,-500.0,0.00011546,2]
[323482981,1714042243799,-219.43,0.00011546,2]
[323482982,1714042243809,-500.0,0.00011546,2]
[323482983,1714042243819,-1131.97,0.00011546,2]
[323482984,1714042243828,-500.0,0.00011546,2]
[323482985,1714042243838,-520.44,0.00011546,2]
[323482986,1714042243848,-500.0,0.00011546,2]
[323482987,1714042243858,-500.0,0.00011546,2]
[323482988,1714042243868,-328.02,0.00011546,2]
[323482989,1714042243880,-612.62,0.00011546,2]
[323482990,1714042243889,-500.0,0.00011546,2]
[323482991,1714042243898,-500.0,0.00011546,2]
[323482992,1714042243908,-500.0,0.00011546,2]
[323482993,1714042243918,-654.5,0.00011546,2]
[323482994,1714042243927,-201.96198898,0.00011546,2]
[323482995,1714042243937,-500.0,0.00011546,2]
[323482996,1714042243946,-500.0,0.00011546,2]
[323482997,1714042243956,-500.0,0.00011546,2]
[323482998,1714042243966,-500.0,0.00011546,2]
[323482999,1714042243977,-500.0,0.00011546,2]
[323483000,1714042243987,-500.0,0.00011546,2]
[323483001,1714042243999,-500.0,0.00011546,2]
[323483002,1714042244008,-500.0,0.00011546,2]
[323483003,1714042244019,-500.0,0.00011546,2]
[323483004,1714042244029,-454.87469494,0.00011546,2]
[323483005,1714042244039,-500.0,0.00011546,2]
[323483006,1714042244048,-500.0,0.00011546,2]
[323483007,1714042244059,-500.0,0.00011546,2]
[323483008,1714042244069,-500.0,0.00011546,2]
[323483009,1714042244079,-500.0,0.00011546,2]
[323483010,1714042244089,-500.0,0.00011546,2]
[323483011,1714042244100,-563.77,0.00011546,2]
[323483012,1714042244109,-500.0,0.00011546,2]
[323483013,1714042244119,-500.0,0.00011546,2]
[323483014,1714042244129,-500.0,0.00011546,2]
[323483015,1714042244138,-930.07,0.00011546,2]
[323483016,1714042244148,-500.0,0.00011546,2]
[323483017,1714042244157,-240.88,0.00011546,2]
[323483018,1714042244166,-500.0,0.00011546,2]
[323483019,1714042244175,-500.0,0.00011546,2]
[323483020,1714042244184,-500.0,0.00011546,2]
[323483021,1714042244194,-500.0,0.00011546,2]
[323483022,1714042244203,-500.0,0.00011546,2]
[323483023,1714042244213,-500.0,0.00011546,2]
[323483024,1714042244222,-785.05,0.00011546,2]
[323483025,1714042244232,-596.77,0.00011546,2]
[323483026,1714042244243,-386.59798803,0.00011546,2]
[323483027,1714042244252,-500.0,0.00011546,2]
[323483028,1714042244261,-500.0,0.00011546,2]
[323483029,1714042244271,-3237.16,0.00011546,2]
[323483030,1714042244280,-500.0,0.00011546,2]
[323483031,1714042244289,-500.0,0.00011546,2]
[323483032,1714042244299,-500.0,0.00011546,2]
[323483033,1714042244308,-343.5,0.00011546,2]
[323483034,1714042244317,-500.0,0.00011546,2]
[323483035,1714042244326,-844.59,0.00011546,2]
[323483036,1714042244335,-500.0,0.00011546,2]
[323483037,1714042244346,-275.08333795,0.00011546,2]
[323483038,1714042244356,-500.0,0.00011546,2]
[323483039,1714042244365,-500.0,0.00011546,2]
[323483040,1714042244374,-500.0,0.00011546,2]
[323483041,1714042244384,-500.0,0.00011546,2]
[323483042,1714042244394,-500.0,0.00011546,2]
[323483043,1714042244403,-4151.98,0.00011546,2]
[323483044,1714042244412,-500.0,0.00011546,2]
[323483045,1714042244422,-1488.61,0.00011546,2]
[323483046,1714042244431,-500.0,0.00011546,2]
[323483047,1714042244441,-531.71,0.00011546,2]
[323483048,1714042244451,-500.0,0.00011546,2]
[323483049,1714042244460,-1452.06,0.00011546,2]
[323483050,1714042244469,-417.76,0.00011546,2]
[323483051,1714042244478,-500.0,0.00011546,2]
[323483052,1714042244488,-2852.06,0.00011546,2]
[323483053,1714042244499,-3420.66,0.00011546,2]
[323483054,1714042244508,-1083.27,0.00011546,2]
[323483055,1714042244517,-500.0,0.00011546,2]
[323483056,1714042244527,-238.6,0.00011546,2]
[323483057,1714042244537,-500.0,0.00011546,2]
[323483058,1714042244547,-500.0,0.00011546,2]
[323483059,1714042244557,-500.0,0.00011546,2]
[323483060,1714042244566,-740.84,0.00011546,2]
[323483061,1714042244576,-3047.1,0.00011546,2]
[323483062,1714042244586,-500.0,0.00011546,2]
[323483063,1714042244596,-500.0,0.00011546,2]
[323483064,1714042244605,-500.0,0.00011546,2]
[323483065,1714042244614,-592.3096544,0.00011546,2]
[323483066,1714042244623,-596.88,0.00011546,2]
[323483067,1714042244633,-500.0,0.00011546,2]
[323483068,1714042244642,-1597.02,0.00011546,2]
[323483069,1714042244651,-1952.25,0.00011546,2]
[323483070,1714042244661,-941.09,0.00011546,2]
[323483071,1714042244671,-500.0,0.00011546,2]
[323483072,1714042244680,-2797.06,0.00011546,2]
[323483073,1714042244690,-651.64,0.00011546,2]
[323483074,1714042244699,-500.0,0.00011546,2]
[323483075,1714042244709,-500.0,0.00011546,2]
[323483076,1714042244718,-8876.9,0.00011546,2]
[323483077,1714042244728,-500.0,0.00011546,2]
[323483078,1714042244737,-1068.07,0.00011546,2]
[323483079,1714042244750,-13045.19,0.00011546,2]
[323483080,1714042244760,-500.0,0.00011546,2]
[323483081,1714042244769,-500.0,0.00011546,2]
[323483082,1714042244778,-1204.89,0.00011546,2]
[323483083,1714042244788,-6503.68,0.00011546,2]
[323483084,1714042244798,-516.28821443,0.00011546,2]
[323483085,1714042244808,-594.92,0.00011546,2]
[323483086,1714042244818,-500.0,0.00011546,2]
[323483087,1714042244829,-546.62,0.00011546,2]
[323483088,1714042244839,-500.0,0.00011546,2]
[323483089,1714042244848,-500.0,0.00011546,2]
[323483090,1714042244862,-327.31997355,0.00011546,2]
[323483091,1714042244873,-646.34,0.00011546,2]
[323483092,1714042244882,-500.0,0.00011546,2]
[323483093,1714042244891,-902.67,0.00011546,2]
[323483094,1714042244900,-500.0,0.00011546,2]
[323483095,1714042244910,-901.59,0.00011546,2]
[323483096,1714042244919,-500.0,0.00011546,2]
[323483097,1714042244929,-500.0,0.00011546,2]
[323483098,1714042244938,-1810.55,0.00011546,2]
[323483099,1714042244948,-1617.04,0.00011546,2]
[323483100,1714042244957,-500.0,0.00011546,2]
[323483101,1714042244967,-500.0,0.00011547,2]
[323483102,1714042244976,-271.9,0.00011547,2]
[323483103,1714042244985,-441.25249325,0.00011547,2]
[323483104,1714042244996,-500.0,0.00011547,2]
[323483105,1714042245005,-423.71,0.00011547,2]
[323483106,1714042245014,-500.0,0.00011547,2]
[323483107,1714042245024,-393.59,0.00011547,2]
[323483108,1714042245034,-500.0,0.00011547,2]
[323483109,1714042245043,-486.88576331,0.00011547,2]
[323483110,1714042245052,-500.0,0.00011547,2]
[323483111,1714042245062,-500.0,0.00011547,2]
[323483112,1714042245071,-199.73,0.00011547,2]
[323483113,1714042245081,-500.0,0.00011547,2]
[323483114,1714042245090,-231.98,0.00011547,2]
[323483115,1714042245099,-500.0,0.00011547,2]
[323483116,1714042245109,-231.79,0.00011547,2]
[323483117,1714042245120,-500.0,0.00011547,2]
[323483118,1714042245129,-321.0184555,0.00011547,2]
[323483119,1714042245138,-894.14,0.00011547,2]
[323483120,1714042245147,-332.64237402,0.00011547,2]
[323483121,1714042245157,-173.50006341,0.00011549,2]
[323483122,1714042245166,-165.46716698,0.00011559,2]
[323483123,1714042245176,-150.0,0.00011589,2]
[323483125,1714042245185,-150.0,0.00011589,2]
[323483127,1714042245194,-150.0,0.00011589,2]
[323483128,1714042245203,-157.57798806,0.00011589,2]
[323483130,1714042245213,-154.19445388,0.00011589,2]
[323483132,1714042245222,-150.0,0.00011589,2]
[323483134,1714042245233,-150.0,0.00011653,2]
[323483135,1714042245244,-150.0,0.00011675,2]
[323483136,1714042245254,-150.0,0.00011718,2]
[323483138,1714042245263,-150.0,0.00011761,2]
[323483139,1714042245273,-154.77,0.00011775,2]
[323483140,1714042245282,-154.77,0.00011779,2]
[323483141,1714042245292,-150.0,0.00011782,2]
[323483142,1714042245301,-154.77,0.00011783,2]
[323483143,1714042245311,-154.77,0.00011787,2]
[323483144,1714042245320,-154.77,0.00011792,2]
[323483145,1714042245330,-154.77,0.00011796,2]
[323483146,1714042245339,-154.77,0.000118,2]
[323483147,1714042245349,-154.77,0.00011804,2]
[323483148,1714042245358,-154.77,0.00011808,2]
[323483149,1714042245368,-154.77,0.00011813,2]
[323483150,1714042245377,-154.77,0.00011817,2]
[323483151,1714042245388,-500.0,0.0001182,2]
[323483152,1714042245397,-500.0,0.0001182,2]
[323483153,1714042245407,-500.0,0.0001182,2]
[323483155,1714042245416,-1042.95,0.0001182,2]
[323483157,1714042245426,-411.05,0.0001182,2]
[323483158,1714042245435,-500.0,0.0001182,2]
[323483159,1714042245444,-500.0,0.0001182,2]
[323483160,1714042245505,-500.0,0.0001182,2]
[323483161,1714042245514,-1131.97,0.0001182,2]
[323483162,1714042245523,-531.05582709,0.0001182,2]
[323483163,1714042245533,-500.0,0.0001182,2]
[323483164,1714042245541,-500.0,0.0001182,2]
[323483165,1714042245551,-649.51,0.0001182,2]
[323483166,1714042245560,-654.5,0.0001182,2]
[323483167,1714042245569,-500.0,0.0001182,2]
[323483168,1714042245578,-500.0,0.0001182,2]
[323483169,1714042245587,-477.78,0.0001182,2]
[323483170,1714042245596,-500.0,0.0001182,2]
[323483171,1714042245605,-500.0,0.0001182,2]
[323483172,1714042245614,-500.0,0.0001182,2]
[323483173,1714042245623,-500.0,0.0001182,2]
[323483174,1714042245632,-500.0,0.0001182,2]
[323483175,1714042245642,-500.0,0.0001182,2]
[323483176,1714042245651,-456.47,0.0001182,2]
[323483177,1714042245660,-550.8,0.0001182,2]
[323483178,1714042245669,-500.0,0.0001182,2]
[323483179,1714042245678,-260.60549782,0.0001182,2]
[323483180,1714042245686,-500.0,0.0001182,2]
[323483181,1714042245696,-563.77,0.0001182,2]
[323483182,1714042245704,-500.0,0.0001182,2]
[323483183,1714042245714,-500.0,0.0001182,2]
[323483184,1714042245722,-500.0,0.0001182,2]
[323483185,1714042245732,-930.07,0.0001182,2]
[323483186,1714042245745,-500.0,0.0001182,2]
[323483187,1714042245754,-500.0,0.0001182,2]
[323483188,1714042245763,-500.0,0.0001182,2]
[323483189,1714042245773,-500.0,0.0001182,2]
[323483190,1714042245782,-500.0,0.0001182,2]
[323483191,1714042245791,-500.0,0.0001182,2]
[323483192,1714042245800,-785.05,0.0001182,2]
[323483193,1714042245809,-624.47,0.0001182,2]
[323483194,1714042245818,-500.0,0.0001182,2]
[323483195,1714042245827,-3237.16,0.0001182,2]
[323483196,1714042245836,-500.0,0.0001182,2]
[323483197,1714042245845,-340.26152433,0.0001182,2]
[323483198,1714042245854,-500.0,0.0001182,2]
[323483199,1714042245865,-500.0,0.0001182,2]
[323483200,1714042245874,-844.59,0.0001182,2]
[323483201,1714042245883,-500.0,0.0001182,2]
[323483202,1714042245892,-350.46,0.0001182,2]
[323483203,1714042245901,-500.0,0.0001182,2]
[323483204,1714042245910,-500.0,0.0001182,2]
[323483205,1714042245919,-500.0,0.0001182,2]
[323483206,1714042245929,-500.0,0.0001182,2]
[323483207,1714042245939,-4151.98,0.0001182,2]
[323483208,1714042245948,-390.18,0.0001182,2]
[323483209,1714042245958,-1488.61,0.0001182,2]
[323483210,1714042245967,-500.0,0.0001182,2]
[323483211,1714042245976,-531.71,0.0001182,2]
[323483212,1714042245986,-1452.06,0.0001182,2]
[323483213,1714042245997,-314.12,0.0001182,2]
[323483214,1714042246006,-2852.06,0.0001182,2]
[323483215,1714042246015,-3420.66,0.0001182,2]
[323483216,1714042246024,-1083.27,0.0001182,2]
[323483217,1714042246034,-500.0,0.0001182,2]
[323483218,1714042246043,-500.0,0.0001182,2]
[323483219,1714042246052,-159.13,0.0001182,2]
[323483220,1714042246062,-500.0,0.0001182,2]
[323483221,1714042246071,-740.84,0.0001182,2]
[323483222,1714042246081,-3047.1,0.0001182,2]
[323483223,1714042246091,-500.0,0.0001182,2]
[323483224,1714042246101,-500.0,0.0001182,2]
[323483225,1714042246110,-596.88,0.0001182,2]
[323483226,1714042246120,-500.0,0.0001182,2]
[323483227,1714042246129,-1597.02,0.0001182,2]
[323483228,1714042246138,-1952.25,0.0001182,2]
[323483229,1714042246148,-941.09,0.0001182,2]
[323483230,1714042246158,-500.0,0.0001182,2]
[323483231,1714042246167,-2797.06,0.0001182,2]
[323483232,1714042246177,-651.64,0.0001182,2]
[323483233,1714042246186,-500.0,0.0001182,2]
[323483234,1714042246196,-500.0,0.0001182,2]
[323483235,1714042246205,-8876.9,0.0001182,2]
[323483236,1714042246215,-500.0,0.0001182,2]
[323483237,1714042246225,-13045.19,0.0001182,2]
[323483238,1714042246234,-500.0,0.0001182,2]
[323483239,1714042246244,-530.56337895,0.0001182,2]
[323483240,1714042246254,-1204.89,0.0001182,2]
[323483241,1714042246263,-6503.68,0.0001182,2]
[323483242,1714042246273,-500.0,0.0001182,2]
[323483243,1714042246282,-509.42324983,0.0001182,2]
[323483245,1714042246292,-546.62,0.0001182,2]
[323483247,1714042246301,-500.0,0.0001182,2]
[323483248,1714042246310,-500.0,0.0001182,2]
[323483249,1714042246319,-902.67,0.0001182,2]
[323483250,1714042246328,-500.0,0.0001182,2]
[323483251,1714042246338,-901.59,0.0001182,2]
[323483252,1714042246347,-500.0,0.0001182,2]
[323483253,1714042246357,-1810.55,0.0001182,2]
[323483254,1714042246366,-1617.04,0.0001182,2]
[323483255,1714042246375,-500.0,0.0001182,2]
[323483256,1714042246384,-154.77,0.00011821,2]
[323483257,1714042246394,-493.3,0.00011821,2]
[323483259,1714042246403,-500.0,0.00011821,2]
[323483261,1714042246412,-500.0,0.00011821,2]
[323483263,1714042246422,-563.23039569,0.00011821,2]
[323483264,1714042246431,-894.14,0.00011821,2]
[323483265,1714042246440,-154.77,0.00011825,2]
[323483266,1714042246449,-154.77,0.00011829,2]
[323483267,1714042246458,-154.77,0.00011833,2]
[323483268,1714042246467,-343.86,0.0001184,2]
[323483269,1714042246476,-150.0,0.00011847,2]
[323483270,1714042246486,-150.0,0.00011847,2]
[323483271,1714042246497,-164.46,0.00011849,2]
[323483272,1714042246507,-150.0,0.00011911,2]
[323483273,1714042246516,-150.0,0.00011932,2]
[323483274,1714042246525,-165.46716698,0.00011939,2]
[323483275,1714042246534,-150.0,0.00011975,2]
[323483276,1714042246543,-150.0,0.00012018,2]
[323483277,1714042246552,-150.0,0.00012018,2]
[323483278,1714042246561,-167.94,0.00012033,2]
[323483279,1714042246570,-150.0,0.0001204,2]
[323483280,1714042246580,-500.0,0.00012093,2]
[323483281,1714042246589,-500.0,0.00012094,2]
[323483282,1714042246598,-500.0,0.00012094,2]
[323483283,1714042246608,-500.0,0.00012094,2]
[323483284,1714042246617,-1042.95,0.00012094,2]
[323483285,1714042246626,-500.0,0.00012094,2]
[323483286,1714042246635,-500.0,0.00012094,2]
[323483287,1714042246645,-500.0,0.00012094,2]
[323483288,1714042246657,-1131.97,0.00012094,2]
[323483289,1714042246667,-500.0,0.00012094,2]
[323483290,1714042246677,-500.0,0.00012094,2]
[323483291,1714042246688,-654.5,0.00012094,2]
[323483292,1714042246699,-500.0,0.00012094,2]
[323483293,1714042246710,-500.0,0.00012094,2]
[323483294,1714042246720,-500.0,0.00012094,2]
[323483295,1714042246729,-500.0,0.00012094,2]
[323483296,1714042246739,-500.0,0.00012094,2]
[323483297,1714042246752,-500.0,0.00012094,2]
[323483298,1714042246761,-500.0,0.00012094,2]
[323483299,1714042246770,-500.0,0.00012094,2]
[323483300,1714042246778,-500.0,0.00012094,2]
[323483301,1714042246787,-500.0,0.00012094,2]
[323483302,1714042246796,-563.77,0.00012094,2]
[323483303,1714042246807,-500.0,0.00012094,2]
[323483304,1714042246817,-426.61,0.00012094,2]
[323483305,1714042246827,-500.0,0.00012094,2]
[323483306,1714042246836,-930.07,0.00012094,2]
[323483307,1714042246846,-500.0,0.00012094,2]
[323483308,1714042246856,-438.91,0.00012094,2]
[323483309,1714042246867,-185.6,0.00012094,2]
[323483310,1714042246877,-500.0,0.00012094,2]
[323483311,1714042246887,-500.0,0.00012094,2]
[323483312,1714042246897,-500.0,0.00012094,2]
[323483313,1714042246908,-785.05,0.00012094,2]
[323483314,1714042246918,-574.16,0.00012094,2]
[323483315,1714042246929,-3237.16,0.00012094,2]
[323483316,1714042246938,-500.0,0.00012094,2]
[323483317,1714042246949,-500.0,0.00012094,2]
[323483318,1714042246959,-500.0,0.00012094,2]
[323483319,1714042246969,-844.59,0.00012094,2]
[323483320,1714042246978,-500.0,0.00012094,2]
[323483321,1714042246987,-500.0,0.00012094,2]
[323483322,1714042246998,-344.37,0.00012094,2]
[323483323,1714042247007,-413.32,0.00012094,2]
[323483324,1714042247016,-500.0,0.00012094,2]
[323483325,1714042247025,-4151.98,0.00012094,2]
[323483326,1714042247037,-1488.61,0.00012094,2]
[323483327,1714042247048,-500.0,0.00012094,2]
[323483328,1714042247058,-531.71,0.00012094,2]
[323483329,1714042247068,-1452.06,0.00012094,2]
[323483330,1714042247077,-2852.06,0.00012094,2]
[323483331,1714042247086,-3420.66,0.00012094,2]
[323483332,1714042247095,-1083.27,0.00012094,2]
[323483333,1714042247106,-500.0,0.00012094,2]
[323483334,1714042247116,-500.0,0.00012094,2]
[323483335,1714042247126,-500.0,0.00012094,2]
[323483336,1714042247135,-740.84,0.00012094,2]
[323483337,1714042247145,-3047.1,0.00012094,2]
[323483338,1714042247155,-500.0,0.00012094,2]
[323483339,1714042247165,-500.0,0.00012094,2]
[323483340,1714042247175,-596.88,0.00012094,2]
[323483341,1714042247184,-236.3,0.00012094,2]
[323483342,1714042247195,-1597.02,0.00012094,2]
[323483343,1714042247204,-1952.25,0.00012094,2]
[323483344,1714042247213,-941.09,0.00012094,2]
[323483345,1714042247223,-500.0,0.00012094,2]
[323483346,1714042247232,-2797.06,0.00012094,2]
[323483347,1714042247243,-651.64,0.00012094,2]
[323483348,1714042247253,-500.0,0.00012094,2]
[323483349,1714042247263,-500.0,0.00012094,2]
[323483350,1714042247273,-8876.9,0.00012094,2]
[323483351,1714042247282,-182.81,0.00012094,2]
[323483352,1714042247291,-13045.19,0.00012094,2]
[323483353,1714042247300,-500.0,0.00012094,2]
[323483354,1714042247309,-1204.89,0.00012094,2]
[323483355,1714042247318,-6503.68,0.00012094,2]
[323483356,1714042247327,-500.0,0.00012094,2]
[323483357,1714042247336,-546.62,0.00012094,2]
[323483358,1714042247345,-500.0,0.00012094,2]
[323483359,1714042247354,-500.0,0.00012094,2]
[323483360,1714042247363,-902.67,0.00012094,2]
[323483361,1714042247371,-500.0,0.00012094,2]
[323483362,1714042247380,-901.59,0.00012094,2]
[323483363,1714042247389,-500.0,0.00012094,2]
[323483364,1714042247398,-1810.55,0.00012094,2]
[323483365,1714042247407,-500.0,0.00012094,2]
[323483366,1714042247416,-1617.04,0.00012094,2]
[323483367,1714042247424,-448.21,0.00012095,2]
[323483368,1714042247434,-500.0,0.00012095,2]
[323483369,1714042247443,-894.14,0.00012095,2]
[323483370,1714042247453,-150.0,0.00012104,2]
[323483371,1714042247462,-150.0,0.00012104,2]
[323483372,1714042247471,-150.0,0.00012168,2]
[323483373,1714042247480,-150.0,0.0001219,2]
[323483374,1714042247491,-150.0,0.00012233,2]
[323483375,1714042247502,-863.99267618,0.00012253,2]
[323483376,1714042247511,-176.45129353,0.00012268,2]
[323483377,1714042247521,-150.0,0.00012276,2]
[323483378,1714042247530,-150.0,0.00012297,2]
[323483379,1714042247539,-165.46716698,0.00012319,2]
[323483380,1714042247549,-517.0,0.00012328,2]
[323483381,1714042247560,-151.4362605,0.00012349,2]
[323483382,1714042247569,-150.0,0.00012362,2]
[323483383,1714042247579,-150.0,0.00012362,2]
[323483384,1714042247590,-500.0,0.00012368,2]
[323483385,1714042247599,-500.0,0.00012368,2]
[323483386,1714042247609,-500.0,0.00012368,2]
[323483387,1714042247620,-1042.95,0.00012368,2]
[323483388,1714042247629,-500.0,0.00012368,2]
[323483389,1714042247638,-500.0,0.00012368,2]
[323483390,1714042247647,-500.0,0.00012368,2]
[323483391,1714042247656,-1131.97,0.00012368,2]
[323483392,1714042247666,-570.22,0.00012368,2]
[323483393,1714042247722,-500.0,0.00012368,2]
[323483394,1714042247732,-654.5,0.00012368,2]
[323483395,1714042247742,-500.0,0.00012368,2]
[323483396,1714042247753,-500.0,0.00012368,2]
[323483397,1714042247763,-500.0,0.00012368,2]
[323483398,1714042247772,-500.0,0.00012368,2]
[323483399,1714042247783,-500.0,0.00012368,2]
[323483400,1714042247794,-500.0,0.00012368,2]
[323483401,1714042247804,-500.0,0.00012368,2]
[323483402,1714042247815,-500.0,0.00012368,2]
[323483403,1714042247825,-500.0,0.00012368,2]
[323483404,1714042247835,-500.0,0.00012368,2]
[323483405,1714042247846,-563.77,0.00012368,2]
[323483406,1714042247855,-595.11,0.00012368,2]
[323483407,1714042247867,-506.42,0.00012368,2]
[323483408,1714042247878,-930.07,0.00012368,2]
[323483409,1714042247889,-500.0,0.00012368,2]
[323483410,1714042247899,-500.0,0.00012368,2]
[323483411,1714042247911,-500.0,0.00012368,2]
[323483412,1714042247922,-500.0,0.00012368,2]
[323483413,1714042247932,-785.05,0.00012368,2]
[323483414,1714042247943,-3237.16,0.00012368,2]
[323483415,1714042247954,-486.33,0.00012368,2]
[323483416,1714042247964,-500.0,0.00012368,2]
[323483417,1714042247974,-500.0,0.00012368,2]
[323483418,1714042247984,-844.59,0.00012368,2]
[323483419,1714042247996,-500.0,0.00012368,2]
[323483420,1714042248006,-216.71,0.00012368,2]
[323483421,1714042248017,-500.0,0.00012368,2]
[323483422,1714042248026,-4151.98,0.00012368,2]
[323483423,1714042248035,-1488.61,0.00012368,2]
[323483424,1714042248044,-500.0,0.00012368,2]
[323483425,1714042248053,-531.71,0.00012368,2]
[323483426,1714042248063,-1452.06,0.00012368,2]
[323483427,1714042248072,-2852.06,0.00012368,2]
[323483428,1714042248084,-3420.66,0.00012368,2]
[323483429,1714042248093,-1083.27,0.00012368,2]